bitfinex-derivatives/quotes_BTCF0:USTF0_20241019
["timestamp","ask_amount","ask_price","bid_price","bid_amount"]
[1729366329927,0.20185173,68265.0,68264.0,0.0002]
[1729366330627,0.25439336,68265.0,68264.0,0.0002]
[1729366331023,0.20185173,68265.0,68264.0,0.0002]
[1729366331229,0.09271518,68265.0,68264.0,0.17729666]
[1729366336128,0.09271518,68265.0,68264.0,0.10416033]
[1729366336645,0.09271518,68265.0,68264.0,0.17736297]
[1729366337540,0.065916,68265.0,68264.0,0.17008512]
[1729366337743,0.065916,68265.0,68264.0,0.25784871]
[1729366338244,0.065916,68265.0,68264.0,0.17008512]
[1729366339443,0.3608,68266.0,68265.0,0.065916]
[1729366339642,0.3608,68266.0,68265.0,0.17008412]
[1729366341351,0.3608,68266.0,68265.0,0.16986119]
[1729366341735,0.3608,68266.0,68265.0,0.24301539]
[1729366342146,0.426715,68266.0,68265.0,0.24301539]
[1729366342347,0.426715,68266.0,68265.0,0.1392702]
[1729366342553,0.426715,68266.0,68265.0,0.066116]
[1729366342744,0.426715,68266.0,68265.0,0.1392702]
[1729366343261,0.426715,68266.0,68265.0,0.066116]
[1729366345260,0.426715,68266.0,68265.0,0.1392662]
[1729366345455,0.426715,68266.0,68265.0,0.24306256]
[1729366346161,0.53584661,68266.0,68265.0,0.066116]
[1729366347465,0.5358477,68266.0,68265.0,0.066116]
[1729366353372,0.426715,68266.0,68265.0,0.24312116]
[1729366353570,0.426715,68266.0,68265.0,0.24313367]
[1729366354152,0.426715,68266.0,68265.0,0.1392662]
[1729366354768,0.065915,68266.0,68265.0,0.1392662]
[1729366355065,0.065915,68266.0,68265.0,0.24310755]
[1729366355369,0.065915,68266.0,68265.0,0.1392662]
[1729366355866,0.065915,68266.0,68265.0,0.16997013]
[1729366356062,0.065915,68266.0,68265.0,0.243121]
[1729366356468,0.065915,68266.0,68265.0,0.16997013]
[1729366357463,0.065915,68266.0,68265.0,0.243125]
[1729366359459,0.065915,68266.0,68265.0,0.16997013]
[1729366360372,0.17504743,68266.0,68265.0,0.066116]
[1729366363870,0.17504743,68266.0,68265.0,0.28584391]
[1729366367077,0.17504527,68266.0,68265.0,0.28584391]
[1729366368266,0.17504527,68266.0,68265.0,0.38969321]
[1729366368267,0.065915,68266.0,68265.0,0.38969321]
[1729366376669,0.065915,68266.0,68265.0,0.28584391]
[1729366376875,0.065915,68266.0,68265.0,0.38974801]
[1729366380886,0.065915,68266.0,68265.0,0.38978627]
[1729366383479,0.17504435,68266.0,68265.0,0.28584391]
[1729366385070,0.17504527,68266.0,68265.0,0.28584391]
[1729366389883,0.17504481,68266.0,68265.0,0.28584391]
[1729366390286,0.065915,68266.0,68265.0,0.3897174]
[1729366391977,0.06548487,68266.0,68265.0,0.3897174]
[1729366393087,0.426713,68268.0,68267.0,0.065914]
[1729366393279,0.426713,68268.0,68267.0,0.16998749]
[1729366395585,0.426713,68268.0,68267.0,0.066114]
[1729366395787,0.426713,68268.0,68267.0,0.16996484]
[1729366398381,0.53584079,68268.0,68267.0,0.066114]
[1729366399195,0.17504079,68268.0,68267.0,0.066114]
[1729366404594,0.065913,68268.0,68267.0,0.066114]
[1729366404891,0.10178483,68268.0,68267.0,0.066114]
[1729366405096,0.17504366,68268.0,68267.0,0.066114]
[1729366405488,0.065913,68268.0,68267.0,0.2432061]
[1729366408591,0.065913,68268.0,68267.0,0.17002846]
[1729366410088,0.426713,68268.0,68267.0,0.17002846]
[1729366413389,0.426713,68268.0,68267.0,0.066114]
[1729366413390,0.53584273,68268.0,68267.0,0.066114]
[1729366419494,0.53584283,68268.0,68267.0,0.066114]
[1729366420502,0.426713,68268.0,68267.0,0.17003088]
[1729366422703,0.426713,68268.0,68267.0,0.17003614]
[1729366423103,0.065909,68273.0,68269.0,0.065912]
[1729366423300,0.3608,68283.0,68275.0,0.065906]
[1729366423301,0.065904,68277.0,68275.0,0.065906]
[1729366423499,0.065904,68277.0,68275.0,0.13927723]
[1729366423704,0.09255487,68277.0,68275.0,0.38859594]
[1729366424612,0.09255487,68277.0,68275.0,0.35823957]
[1729366424911,0.09255487,68277.0,68276.0,0.0002]
[1729366425308,0.09255487,68277.0,68276.0,0.22032659]
[1729366425703,0.45335487,68277.0,68276.0,0.27881007]
[1729366425908,0.45335487,68277.0,68275.0,0.05868348]
[1729366426101,0.065905,68276.0,68275.0,0.0002]
[1729366426407,0.065905,68276.0,68275.0,0.04407147]
[1729366428404,0.065905,68276.0,68275.0,0.0002]
[1729366432606,0.154425,68276.0,68275.0,0.0002]
[1729366435418,0.25018491,68276.0,68272.0,0.04293198]
[1729366435725,0.17503359,68275.0,68272.0,0.04293198]
[1729366436019,0.10912759,68274.0,68272.0,0.04293198]
[1729366436219,0.10912759,68273.0,68272.0,0.04293198]
[1729366436520,0.17503559,68273.0,68272.0,0.04293198]
[1729366441922,0.26355559,68273.0,68272.0,0.04293198]
[1729366442122,0.26355606,68273.0,68272.0,0.04293198]
[1729366443419,0.154428,68273.0,68272.0,0.04293198]
[1729366448525,0.154428,68273.0,68267.0,0.07331285]
[1729366448526,0.08852,68273.0,68267.0,0.07331285]
[1729366448723,0.08852,68273.0,68267.0,0.0002]
[1729366448724,0.426713,68268.0,68267.0,0.0002]
[1729366449433,0.426713,68268.0,68267.0,0.04408823]
[1729366450020,0.426713,68268.0,68267.0,0.0002]
[1729366450230,0.426713,68268.0,68267.0,0.04408823]
[1729366450423,0.426713,68268.0,68267.0,0.0002]
[1729366451529,0.53585662,68268.0,68267.0,0.0002]
[1729366451734,0.56247156,68268.0,68267.0,0.0002]
[1729366455930,0.56247048,68268.0,68267.0,0.0002]
[1729366458638,0.45332794,68268.0,68267.0,0.0002]
[1729366466540,0.56247138,68268.0,68267.0,0.0002]
[1729366470864,0.56247066,68268.0,68267.0,0.0002]
[1729366471652,0.72355011,68268.0,68267.0,0.0002]
[1729366472967,0.77609466,68268.0,68267.0,0.0002]
[1729366473664,0.45332794,68268.0,68267.0,0.0002]
[1729366477165,0.09252794,68268.0,68267.0,0.0002]
[1729366477665,0.45332794,68268.0,68267.0,0.0002]
[1729366478373,0.54220794,68268.0,68267.0,0.0002]
[1729366478977,0.54220794,68268.0,68267.0,0.05876825]
[1729366479170,0.54220794,68268.0,68267.0,0.0002]
[1729366479365,0.54220794,68268.0,68267.0,0.05876964]
[1729366480668,0.54220794,68268.0,68267.0,0.0002]
[1729366486672,0.5705064,68268.0,68267.0,0.0002]
[1729366488673,0.86497248,68268.0,68267.0,0.0002]
[1729366489673,0.81242852,68268.0,68267.0,0.0002]
[1729366490182,0.65134907,68268.0,68267.0,0.0002]
[1729366490479,0.6513487,68268.0,68267.0,0.0002]
[1729366495479,0.65134777,68268.0,68267.0,0.0002]
[1729366495675,0.54220794,68268.0,68267.0,0.0002]
[1729366496087,0.54220794,68268.0,68267.0,0.05876964]
[1729366499384,0.54220794,68268.0,68267.0,0.0002]
[1729366499588,0.54220794,68268.0,68267.0,0.05876964]
[1729366500092,0.54220794,68268.0,68267.0,0.0002]
[1729366502495,0.45332794,68268.0,68267.0,0.0002]
[1729366502684,0.54188794,68268.0,68267.0,0.0002]
[1729366503588,0.57776136,68268.0,68267.0,0.0002]
[1729366503792,0.65102344,68268.0,68267.0,0.0002]
[1729366510896,0.65102344,68268.0,68267.0,0.05876519]
[1729366510897,0.54188794,68268.0,68267.0,0.05876519]
[1729366511287,0.45332794,68268.0,68267.0,0.05876519]
[1729366514597,0.45332794,68268.0,68267.0,0.05856519]
[1729366518093,0.38741494,68268.0,68264.0,0.065917]
[1729366518293,0.065916,68265.0,68264.0,0.065917]
[1729366520697,0.065916,68265.0,68264.0,0.13902985]
[1729366521304,0.065916,68265.0,68263.0,0.13671285]
[1729366521514,0.065917,68264.0,68263.0,0.13671285]
[1729366521696,0.065917,68264.0,68263.0,0.0636]
[1729366521896,0.065917,68264.0,68263.0,0.28398636]
[1729366523499,0.065917,68264.0,68263.0,0.35709921]
[1729366525203,0.065917,68264.0,68263.0,0.32479921]
[1729366525410,0.065917,68264.0,68263.0,0.29349921]
[1729366525904,0.2574085,68264.0,68263.0,0.22038636]
[1729366526114,0.48265933,68264.0,68263.0,0.22038636]
[1729366526298,0.48265933,68264.0,68262.0,0.219628]
[1729366526606,0.10913682,68263.0,68261.0,0.1032]
[1729366526808,0.10913682,68263.0,68262.0,0.219628]
[1729366528408,0.17505482,68263.0,68262.0,0.219628]
[1729366528617,0.065919,68262.0,68261.0,0.1032]
[1729366528799,0.56875582,68262.0,68261.0,0.1032]
[1729366529201,0.62130101,68262.0,68261.0,0.1032]
[1729366533704,0.459619,68262.0,68261.0,0.2804139]
[1729366538117,0.459619,68262.0,68261.0,0.17631285]
[1729366540713,0.56876284,68262.0,68261.0,0.1032]
[1729366547716,0.56876252,68262.0,68261.0,0.1032]
[1729366548715,0.459619,68262.0,68261.0,0.1617406]
[1729366553129,0.459619,68262.0,68261.0,0.1032]
[1729366553525,0.459619,68262.0,68261.0,0.161762]
[1729366554224,0.459619,68262.0,68261.0,0.1032]
[1729366555719,0.56876327,68262.0,68261.0,0.1032]
[1729366557424,0.20796327,68262.0,68261.0,0.1032]
[1729366557626,0.56876327,68262.0,68261.0,0.1032]
[1729366557827,0.20796327,68262.0,68261.0,0.1032]
[1729366558030,0.56876327,68262.0,68261.0,0.1032]
[1729366559928,0.20796327,68262.0,68261.0,0.1032]
[1729366560233,0.56876327,68262.0,68261.0,0.1032]
[1729366561027,0.62130861,68262.0,68261.0,0.1032]
[1729366561334,0.36908256,68262.0,68261.0,0.1032]
[1729366561523,0.72988256,68262.0,68261.0,0.1032]
[1729366561925,0.7824279,68262.0,68261.0,0.1032]
[1729366562435,0.62130861,68262.0,68261.0,0.1032]
[1729366563531,0.62130861,68262.0,68248.0,0.065932]
[1729366563532,1.22131101,68262.0,68248.0,0.065932]
[1729366563832,1.22131101,68262.0,68249.0,0.19225134]
[1729366563833,0.065931,68250.0,68249.0,0.19225134]
[1729366564332,0.065931,68250.0,68249.0,0.10432255]
[1729366565527,0.3608,68251.0,68248.0,0.07322579]
[1729366565727,0.001,68249.0,68248.0,0.07322579]
[1729366566228,0.065934,68246.0,68245.0,0.07322579]
[1729366566432,0.066934,68246.0,68245.0,0.17765395]
[1729366567134,0.066934,68246.0,68245.0,0.07322579]
[1729366567534,0.066934,68246.0,68245.0,0.13916079]
[1729366568338,0.066934,68246.0,68245.0,0.065935]
[1729366569534,0.001,68246.0,68245.0,0.065935]
[1729366570933,0.065933,68248.0,68246.0,0.065933]
[1729366571134,0.065933,68248.0,68247.0,0.170347]
[1729366572537,0.065933,68248.0,68247.0,0.29471212]
[1729366573341,0.065933,68248.0,68247.0,0.170347]
[1729366574828,0.426733,68248.0,68247.0,0.170347]
[1729366577947,0.065933,68248.0,68247.0,0.170347]
[1729366578145,0.426733,68248.0,68247.0,0.170347]
[1729366578837,0.426733,68248.0,68247.0,0.065933]
[1729366580039,0.065933,68248.0,68247.0,0.065933]
[1729366580241,0.426733,68248.0,68247.0,0.065933]
[1729366580836,0.065933,68248.0,68247.0,0.065933]
[1729366581243,0.3608,68248.0,68247.0,0.065933]
[1729366581935,0.11620689,68249.0,68241.0,0.00219773]
[1729366582135,0.0002,68246.0,68242.0,0.0002]
[1729366582340,0.0002,68246.0,68245.0,0.065935]
[1729366585933,0.0002,68246.0,68245.0,0.29465454]
[1729366593944,0.06438605,68246.0,68245.0,0.065935]
[1729366594141,0.0002,68246.0,68245.0,0.065935]
[1729366594348,0.06438597,68246.0,68245.0,0.065935]
[1729366600960,0.11624689,68249.0,68247.0,0.065933]
[1729366601159,0.11624689,68249.0,68248.0,0.22906811]
[1729366602255,0.11624689,68249.0,68248.0,0.29500011]
[1729366603449,0.18217789,68249.0,68248.0,0.29500011]
[1729366609349,0.18217789,68249.0,68248.0,0.29419075]
[1729366612369,0.18217789,68249.0,68248.0,0.17006646]
[1729366612867,0.18217789,68249.0,68247.0,0.08793856]
[1729366612868,1.25323789,68249.0,68247.0,0.08793856]
[1729366613171,1.25323789,68249.0,68240.0,0.0002]
[1729366613172,0.80036,68248.0,68240.0,0.0002]
[1729366613463,0.3608,68241.0,68240.0,0.0002]
[1729366614354,0.426739,68241.0,68240.0,0.05879197]
[1729366615161,0.426739,68241.0,68240.0,0.0002]
[1729366616165,0.45683689,68241.0,68240.0,0.0002]
[1729366617366,0.48267385,68241.0,68240.0,0.0002]
[1729366619668,0.48242681,68241.0,68240.0,0.0002]
[1729366622164,0.48233769,68241.0,68240.0,0.0002]
[1729366624158,0.45257596,68241.0,68240.0,0.0002]
[1729366631064,0.48234102,68241.0,68240.0,0.0002]
[1729366631671,0.48235448,68241.0,68240.0,0.0002]
[1729366632267,0.51824569,68241.0,68240.0,0.0002]
[1729366632578,0.60712569,68241.0,68240.0,0.0002]
[1729366634568,0.57123448,68241.0,68240.0,0.0002]
[1729366635784,0.60712519,68241.0,68240.0,0.0002]
[1729366636369,0.60722264,68241.0,68240.0,0.0002]
[1729366639173,0.54145596,68241.0,68240.0,0.0002]
[1729366640982,0.45257596,68241.0,68240.0,0.0002]
[1729366641180,0.54145596,68241.0,68240.0,0.0002]
[1729366641681,0.54145596,68241.0,68240.0,0.05877248]
[1729366641883,0.54145596,68241.0,68240.0,0.0002]
[1729366643286,0.54145596,68241.0,68240.0,0.17459835]
[1729366644076,0.45257596,68241.0,68240.0,0.07349223]
[1729366644278,0.45257596,68241.0,68240.0,0.17462345]
[1729366644279,0.54145596,68241.0,68240.0,0.17462345]
[1729366644579,0.54145596,68241.0,68240.0,0.10133122]
[1729366646083,0.57153838,68241.0,68240.0,0.0002]
[1729366646278,0.60742738,68241.0,68240.0,0.0002]
[1729366653793,0.60726738,68241.0,68240.0,0.0002]
[1729366654096,0.54129596,68241.0,68240.0,0.07350477]
[1729366654293,0.54129596,68241.0,68240.0,0.0002]
[1729366654987,0.54129596,68241.0,68240.0,0.07350477]
[1729366655589,0.54129596,68241.0,68240.0,0.0002]
[1729366655780,0.54129596,68241.0,68240.0,0.07350477]
[1729366656294,0.54129596,68241.0,68240.0,0.17463911]
[1729366656889,0.54129596,68241.0,68240.0,0.17465265]
[1729366657289,0.54129596,68241.0,68240.0,0.17461754]
[1729366657693,0.54129596,68241.0,68240.0,0.07350477]
[1729366659004,0.54129596,68241.0,68240.0,0.0002]
[1729366659496,0.54129596,68241.0,68240.0,0.07350477]
[1729366659704,0.54129596,68241.0,68240.0,0.0002]
[1729366660198,0.54129596,68241.0,68240.0,0.07350477]
[1729366660794,0.54129596,68241.0,68240.0,0.0002]
[1729366662805,0.54129596,68241.0,68240.0,0.07350477]
[1729366663306,0.54129596,68241.0,68240.0,0.0002]
[1729366664303,0.54129596,68241.0,68240.0,0.07350477]
[1729366664692,0.54129596,68241.0,68240.0,0.0002]
[1729366665708,0.45257596,68241.0,68240.0,0.10131196]
[1729366665905,0.54129596,68241.0,68240.0,0.10131196]
[1729366669212,0.6073248,68241.0,68240.0,0.0002]
[1729366670206,0.5186048,68241.0,68240.0,0.0002]
[1729366670512,0.6073248,68241.0,68240.0,0.0002]
[1729366672206,0.65230913,68241.0,68240.0,0.0002]
[1729366674117,0.6073248,68241.0,68240.0,0.0002]
[1729366674818,0.65230999,68241.0,68240.0,0.0002]
[1729366675017,0.65225145,68241.0,68240.0,0.0002]
[1729366675406,0.60726663,68241.0,68240.0,0.0002]
[1729366676207,0.54129596,68241.0,68240.0,0.10122159]
[1729366676922,0.45257596,68241.0,68240.0,0.10122159]
[1729366677218,0.54129596,68241.0,68240.0,0.10122159]
[1729366679307,0.54129596,68241.0,68240.0,0.18917422]
[1729366681116,0.54129596,68241.0,68240.0,0.0002]
[1729366681619,0.54129596,68241.0,68240.0,0.189159]
[1729366682311,0.54129596,68241.0,68240.0,0.10120853]
[1729366683219,0.57141452,68241.0,68240.0,0.0002]
[1729366683910,0.48269452,68241.0,68240.0,0.0002]
[1729366684316,0.54125596,68241.0,68240.0,1.03984]
[1729366685512,0.515419,68241.0,68240.0,1.03984]
[1729366685713,0.426739,68241.0,68240.0,1.03984]
[1729366685913,0.065939,68241.0,68240.0,1.03984]
[1729366686215,0.426739,68241.0,68240.0,1.03984]
[1729366686807,0.426739,68241.0,68240.0,0.43984]
[1729366687011,0.426739,68241.0,68240.0,1.03964]
[1729366687223,0.426739,68241.0,68240.0,0.6]
[1729366688216,0.065939,68241.0,68240.0,0.6]
[1729366688922,0.09196105,68241.0,68240.0,0.6]
[1729366689310,0.09196105,68241.0,68239.0,0.066141]
[1729366689311,0.06594,68240.0,68239.0,0.066141]
[1729366689617,0.06614,68240.0,68239.0,0.066141]
[1729366689818,0.06614,68240.0,68239.0,0.666141]
[1729366690027,0.06614,68240.0,68239.0,0.6002]
[1729366691221,0.06614,68240.0,68239.0,0.6588334]
[1729366691830,0.06614,68240.0,68239.0,0.6002]
[1729366695529,0.06614,68240.0,68239.0,0.0002]
[1729366695835,0.06614,68240.0,68239.0,0.05877817]
[1729366696516,0.06614,68240.0,68239.0,0.0002]
[1729366697026,0.06614,68240.0,68239.0,0.6002]
[1729366697330,0.06614,68240.0,68239.0,0.0002]
[1729366698223,0.06614,68240.0,68239.0,0.15953282]
[1729366698425,0.06614,68240.0,68239.0,0.10095492]
[1729366698926,0.06614,68240.0,68239.0,0.2210342]
[1729366699820,0.06614,68240.0,68239.0,0.10095492]
[1729366700420,0.06614,68240.0,68239.0,0.22098826]
[1729366700629,0.06614,68240.0,68239.0,0.22099177]
[1729366701015,0.06614,68240.0,68239.0,0.22099594]
[1729366701331,0.06614,68240.0,68239.0,0.18882486]
[1729366702221,0.06614,68240.0,68239.0,0.18882656]
[1729366702417,0.06614,68240.0,68239.0,0.08806985]
[1729366702622,0.06614,68240.0,68239.0,0.1009655]
[1729366706433,0.09646599,68240.0,68239.0,0.0002]
[1729366711434,0.13235294,68240.0,68239.0,0.0002]
[1729366713534,0.35783582,68242.0,68239.0,0.36064433]
[1729366713730,0.065939,68241.0,68240.0,0.46304147]
[1729366715439,0.426739,68241.0,68240.0,0.46304147]
[1729366717429,0.426739,68241.0,68240.0,0.36044433]
[1729366721536,0.06594,68240.0,68239.0,0.0002]
[1729366721743,0.0974265,68240.0,68239.0,0.0002]
[1729366722242,0.065943,68238.0,68236.0,0.065944]
[1729366722436,0.0002,68237.0,68236.0,0.065944]
[1729366722740,0.066143,68237.0,68236.0,0.2870535]
[1729366728445,0.066143,68237.0,68236.0,0.50647965]
[1729366731537,0.066143,68237.0,68236.0,0.50643441]
[1729366736341,0.066143,68237.0,68236.0,0.50639395]
[1729366736546,0.09738915,68237.0,68236.0,0.2870535]
[1729366743751,0.066143,68237.0,68236.0,0.50651343]
[1729366744654,0.066143,68237.0,68236.0,0.50654258]
[1729366746449,0.066143,68237.0,68236.0,0.60914469]
[1729366747154,0.066143,68237.0,68236.0,0.50654258]
[1729366748154,0.066143,68237.0,68236.0,0.60914469]
[1729366748456,0.066143,68237.0,68236.0,0.50654258]
[1729366748959,0.066143,68237.0,68236.0,0.74767994]
[1729366750958,0.066143,68237.0,68236.0,0.74769924]
[1729366751453,0.066143,68237.0,68236.0,0.60914469]
[1729366751656,0.066143,68237.0,68236.0,0.50654258]
[1729366754256,0.066143,68237.0,68236.0,0.50655805]
[1729366756663,0.066143,68237.0,68236.0,0.5065172]
[1729366758662,0.09735106,68237.0,68236.0,0.2870535]
[1729366764084,0.09733149,68237.0,68236.0,0.2870535]
[1729366766690,0.066143,68237.0,68236.0,0.50658192]
[1729366769292,0.066143,68237.0,68236.0,0.50657055]
[1729366772690,0.066143,68237.0,68236.0,0.60917266]
[1729366772899,0.066143,68237.0,68236.0,0.50657055]
[1729366773295,0.066143,68237.0,68236.0,0.60917266]
[1729366773601,0.10233248,68237.0,68236.0,0.2870535]
[1729366773902,0.13350218,68237.0,68236.0,0.2870535]
[1729366774097,0.0313697,68237.0,68236.0,0.2870535]
[1729366774305,0.0002,68237.0,68236.0,0.2870535]
[1729366774508,0.0002,68237.0,68236.0,0.3180535]
[1729366774892,0.0311,68248.0,68236.0,0.9180535]
[1729366775093,0.065935,68246.0,68245.0,0.065934]
[1729366775608,0.065935,68246.0,68245.0,0.28554241]
[1729366781104,0.065935,68246.0,68245.0,0.31251562]
[1729366781700,0.065935,68246.0,68245.0,0.50034122]
[1729366782609,0.065931,68250.0,68249.0,0.065931]
[1729366782910,0.065931,68250.0,68249.0,0.36008685]
[1729366783303,0.065931,68250.0,68249.0,0.28697136]
[1729366788905,0.065931,68250.0,68249.0,0.38676623]
[1729366791209,0.02602604,68254.0,68250.0,0.06593]
[1729366791210,0.065927,68254.0,68250.0,0.06593]
[1729366791505,0.47655,68271.0,68250.0,0.32049989]
[1729366791506,0.065923,68258.0,68250.0,0.32049989]
[1729366791702,0.065923,68258.0,68253.0,0.08768777]
[1729366791915,0.065923,68258.0,68257.0,0.065924]
[1729366792116,0.065923,68258.0,68257.0,0.16571887]
[1729366792305,0.065923,68258.0,68257.0,0.38689678]
[1729366792502,0.065923,68258.0,68257.0,0.45995943]
[1729366792918,0.065923,68258.0,68257.0,0.36016456]
[1729366793818,0.065923,68258.0,68257.0,0.29424056]
[1729366794120,0.065923,68258.0,68257.0,0.22117791]
[1729366794410,0.3608,68258.0,68255.0,0.07306265]
[1729366794625,0.066124,68256.0,68255.0,0.07306265]
[1729366794816,0.066124,68256.0,68255.0,0.09963393]
[1729366795011,0.066124,68256.0,68255.0,0.31940462]
[1729366796225,0.066124,68256.0,68255.0,0.09963393]
[1729366796420,0.0002,68256.0,68254.0,0.07307463]
[1729366796618,0.0002,68256.0,68255.0,0.17278113]
[1729366796809,0.0002,68255.0,68251.0,0.21980758]
[1729366797012,0.065928,68252.0,68251.0,0.065928]
[1729366797320,0.09737994,68252.0,68251.0,0.2856863]
[1729366801323,0.13375441,68252.0,68251.0,0.2856863]
[1729366802517,0.06782641,68252.0,68251.0,0.2856863]
[1729366803820,0.0002,68252.0,68251.0,0.5042918]
[1729366807219,0.0002,68255.0,68251.0,0.4383638]
[1729366807530,0.0002,68255.0,68254.0,0.065926]
[1729366807720,0.0002,68255.0,68254.0,0.2845315]
[1729366807927,0.0002,68255.0,68254.0,0.50347073]
[1729366811735,0.0002,68255.0,68254.0,0.28486523]
[1729366812125,0.11296594,68255.0,68254.0,0.28486523]
[1729366816943,0.1129799,68255.0,68254.0,0.28486523]
[1729366817143,0.1129799,68255.0,68251.0,0.065929]
[1729366817443,0.065928,68252.0,68251.0,0.065929]
[1729366817632,0.065928,68252.0,68251.0,0.28594329]
[1729366817834,0.1787079,68252.0,68251.0,0.28594329]
[1729366818736,0.065928,68252.0,68251.0,0.50480814]
[1729366822146,0.065928,68252.0,68251.0,0.21886485]
[1729366822448,0.065928,68252.0,68251.0,0.18774453]
[1729366822650,0.065928,68252.0,68251.0,0.09984885]
[1729366824243,0.065928,68252.0,68251.0,0.18772254]
[1729366826950,0.065929,68251.0,68250.0,0.0002]
[1729366827166,0.13323379,68251.0,68250.0,0.0002]
[1729366827743,0.17820705,68251.0,68250.0,0.0002]
[1729366827949,0.06730479,68251.0,68250.0,0.06613]
[1729366829048,0.13323379,68251.0,68250.0,0.06613]
[1729366830052,0.15995137,68251.0,68250.0,0.06613]
[1729366833967,0.09264658,68251.0,68250.0,0.28528557]
[1729366835258,0.09264658,68251.0,68250.0,0.2852799]
[1729366841960,0.09264658,68251.0,68250.0,0.06613]
[1729366845270,0.09264658,68251.0,68250.0,0.13933215]
[1729366846371,0.09264658,68251.0,68250.0,0.23934135]
[1729366848875,0.16008482,68251.0,68250.0,0.06613]
[1729366850068,0.16007595,68251.0,68250.0,0.06613]
[1729366854964,0.12389963,68251.0,68250.0,0.0002]
[1729366855175,0.16018813,68251.0,68250.0,0.0002]
[1729366855978,0.09264658,68251.0,68250.0,0.10036016]
[1729366856181,0.69264658,68251.0,68250.0,0.10036016]
[1729366859674,1.49300658,68251.0,68250.0,0.10036016]
[1729366859871,1.49300658,68251.0,68250.0,0.07345296]
[1729366860071,1.49300658,68251.0,68250.0,0.0002]
[1729366863982,1.52376822,68251.0,68250.0,0.0002]
[1729366866267,1.08420822,68251.0,68250.0,0.0002]
[1729366866585,1.12009199,68251.0,68250.0,0.0002]
[1729366870983,1.05344658,68251.0,68250.0,0.0002]
[1729366871286,0.45344658,68251.0,68250.0,0.0002]
[1729366872985,1.05344658,68251.0,68250.0,0.0002]
[1729366873187,0.45344658,68251.0,68250.0,0.0002]
[1729366886591,0.81424658,68251.0,68250.0,0.0002]
[1729366888194,0.09264658,68251.0,68250.0,0.0002]
[1729366888597,0.81424658,68251.0,68250.0,0.0002]
[1729366889999,0.065936,68244.0,68243.0,0.0002]
[1729366890195,0.515416,68244.0,68243.0,0.0002]
[1729366891798,0.515416,68244.0,68235.0,0.065945]
[1729366891799,0.61343796,68244.0,68235.0,0.0425229]
[1729366891989,0.065944,68236.0,68235.0,0.0425229]
[1729366896898,0.13236078,68236.0,68235.0,0.0425229]
[1729366900911,0.15830247,68236.0,68235.0,0.0425229]
[1729366902604,0.15830247,68236.0,68235.0,0.14405955]
[1729366902605,0.09188569,68236.0,68235.0,0.14405955]
[1729366903208,0.09188569,68236.0,68235.0,0.23198705]
[1729366903802,0.09188569,68236.0,68235.0,0.14405955]
[1729366903999,0.09188569,68236.0,68235.0,0.23198705]
[1729366904199,0.09188569,68236.0,68235.0,0.23194512]
[1729366905305,0.09188569,68236.0,68235.0,0.14401762]
[1729366905902,0.065944,68236.0,68235.0,0.14401762]
[1729366906105,0.065944,68236.0,68235.0,0.23196208]
[1729366906301,0.065944,68236.0,68235.0,0.26504838]
[1729366906511,0.426743,68238.0,68237.0,0.065943]
[1729366906711,0.426743,68238.0,68237.0,0.28846848]
[1729366908311,0.065943,68238.0,68237.0,0.28846848]
[1729366908909,0.065943,68238.0,68237.0,0.28814722]
[1729366913921,0.065943,68238.0,68237.0,0.28831605]
[1729366917740,0.17632936,68238.0,68237.0,0.065943]
[1729366918740,0.065946,68234.0,68233.0,0.0303]
[1729366918945,0.04518143,68234.0,68232.0,0.065947]
[1729366919144,0.1765331,68233.0,68232.0,0.065947]
[1729366919445,0.1765331,68233.0,68232.0,0.28686573]
[1729366924642,0.02215058,68233.0,68232.0,0.64997388]
[1729366924948,0.0002,68233.0,68232.0,0.64997388]
[1729366925550,0.066147,68233.0,68232.0,0.64997388]
[1729366925950,0.09276395,68233.0,68232.0,0.64997388]
[1729366927043,0.09276395,68233.0,68232.0,0.50944535]
[1729366928233,0.066147,68233.0,68232.0,0.50944535]
[1729366932739,0.13185329,68233.0,68232.0,0.28686573]
[1729366934941,0.13185329,68233.0,68232.0,0.22091873]
[1729366935341,0.065948,68232.0,68230.0,0.21861654]
[1729366935550,0.065948,68232.0,68229.0,0.06814847]
[1729366935551,0.06570629,68231.0,68229.0,0.06814847]
[1729366935752,0.06590629,68230.0,68229.0,0.06814847]
[1729366936250,0.06590629,68230.0,68229.0,0.28676501]
[1729366939848,9.773e-05,68231.0,68230.0,0.06595]
[1729366940053,9.773e-05,68231.0,68230.0,0.167143]
[1729366940258,9.773e-05,68231.0,68230.0,0.38663567]
[1729366940746,0.09844673,68231.0,68230.0,0.38663567]
[1729366940951,0.09844673,68231.0,68230.0,0.47454737]
[1729366941954,0.09844673,68231.0,68230.0,0.38663567]
[1729366942643,0.06604673,68231.0,68230.0,0.38663567]
[1729366943054,0.06604673,68231.0,68230.0,0.50713731]
[1729366944348,0.06604673,68231.0,68230.0,0.38663567]
[1729366945150,0.06604673,68231.0,68230.0,0.50720791]
[1729366946551,0.06604673,68231.0,68230.0,0.50726767]
[1729366946858,0.06604673,68231.0,68230.0,0.38663567]
[1729366947656,0.13179194,68231.0,68230.0,0.28544267]
[1729366954656,0.06604673,68231.0,68230.0,0.50704967]
[1729366958661,0.06604673,68231.0,68230.0,0.50714092]
[1729366960648,0.06604673,68231.0,68230.0,0.50721021]
[1729366960856,0.06604673,68231.0,68230.0,0.5072113]
[1729366962550,0.06604673,68231.0,68230.0,0.50728213]
[1729366963456,0.06604673,68231.0,68230.0,0.38661626]
[1729366965668,0.06604673,68231.0,68230.0,0.4745743]
[1729366965973,0.06604673,68231.0,68230.0,0.3867165]
[1729366966269,0.06604673,68231.0,68230.0,0.4746737]
[1729366966566,0.06604673,68231.0,68230.0,0.3867165]
[1729366969759,0.13173604,68231.0,68230.0,0.28544267]
[1729366975659,0.13175474,68231.0,68230.0,0.28544267]
[1729366977756,0.06604673,68231.0,68230.0,0.3867121]
[1729366980071,0.06604673,68231.0,68230.0,0.507426]
[1729366980770,0.06604673,68231.0,68230.0,0.3867121]
[1729366981670,0.06604673,68231.0,68230.0,0.50742444]
[1729366981867,0.06604673,68231.0,68230.0,0.3867121]
[1729366984781,0.09588381,68231.0,68230.0,0.28544267]
[1729366988974,0.09581785,68231.0,68230.0,0.28544267]
[1729366989675,0.13170656,68231.0,68230.0,0.28544267]
[1729366989867,0.09581785,68231.0,68230.0,0.28544267]